fUST/lending_fUST_20240818
["ID","MTS","AMOUNT","RATE_DAILY","PERIOD"]
[335205137,1723978243649,-500.0,0.00016438,2]
[335205138,1723978243660,-1000.0,0.00016438,2]
[335205139,1723978243671,-500.0,0.00016438,2]
[335205140,1723978243681,-500.0,0.00016438,2]
[335205141,1723978243690,-500.0,0.00016438,2]
[335205142,1723978243700,-466.80532712,0.00016438,2]
[335205143,1723978243711,-500.0,0.00016438,2]
[335205144,1723978243722,-500.0,0.00016438,2]
[335205145,1723978243732,-500.0,0.00016438,2]
[335205146,1723978243743,-500.0,0.00016438,2]
[335205148,1723978243753,-500.0,0.00016438,2]
[335205150,1723978243772,-500.0,0.00016438,2]
[335205152,1723978243781,-500.0,0.00016438,2]
[335205154,1723978243792,-500.0,0.00016438,2]
[335205155,1723978243803,-500.0,0.00016438,2]
[335205156,1723978243812,-612.12252098,0.00016438,2]
[335205157,1723978243821,-152.69201869,0.00016438,2]
[335205158,1723978243831,-500.0,0.00016438,2]
[335205159,1723978243842,-500.0,0.00016438,2]
[335205160,1723978243851,-500.0,0.00016438,2]
[335205161,1723978243860,-819.13,0.00016438,2]
[335205162,1723978243871,-640.2,0.00016438,2]
[335205163,1723978243880,-500.0,0.00016438,2]
[335205164,1723978243890,-500.0,0.00016438,2]
[335205165,1723978243899,-500.0,0.00016438,2]
[335205166,1723978243910,-500.0,0.00016438,2]
[335205167,1723978243919,-500.0,0.00016438,2]
[335205168,1723978243929,-500.0,0.00016438,2]
[335205169,1723978243938,-514.58,0.00016438,2]
[335205170,1723978243947,-500.0,0.00016438,2]
[335205171,1723978243956,-500.0,0.00016438,2]
[335205172,1723978243967,-500.0,0.00016438,2]
[335205173,1723978243976,-500.0,0.00016438,2]
[335205174,1723978243985,-528.20501556,0.00016438,2]
[335205175,1723978243995,-500.0,0.00016438,2]
[335205176,1723978244004,-718.29,0.00016438,2]
[335205177,1723978244014,-500.0,0.00016438,2]
[335205178,1723978244023,-500.0,0.00016438,2]
[335205179,1723978244033,-500.0,0.00016438,2]
[335205180,1723978244042,-500.0,0.00016438,2]
[335205181,1723978244051,-502.75146287,0.00016438,2]
[335205182,1723978244061,-500.0,0.00016438,2]
[335205183,1723978244070,-535.57,0.00016438,2]
[335205184,1723978244079,-500.0,0.00016438,2]
[335205185,1723978244089,-500.0,0.00016438,2]
[335205186,1723978244098,-500.0,0.00016438,2]
[335205187,1723978244108,-500.0,0.00016438,2]
[335205188,1723978244118,-500.0,0.00016438,2]
[335205189,1723978244128,-500.0,0.00016438,2]
[335205190,1723978244139,-516.18,0.00016438,2]
[335205191,1723978244148,-521.64609183,0.00016438,2]
[335205192,1723978244157,-150.0,0.00016438,2]
[335205193,1723978244167,-500.0,0.00016438,2]
[335205194,1723978244176,-417.33335301,0.00016438,2]
[335205195,1723978244185,-500.0,0.00016438,2]
[335205196,1723978244195,-500.0,0.00016438,2]
[335205197,1723978244205,-500.0,0.00016438,2]
[335205198,1723978244214,-500.0,0.00016438,2]
[335205199,1723978244223,-505.3599567,0.00016438,2]
[335205200,1723978244233,-505.90449131,0.00016438,2]
[335205201,1723978244243,-500.0,0.00016438,2]
[335205202,1723978244252,-500.0,0.00016438,2]
[335205203,1723978244261,-500.0,0.00016438,2]
[335205204,1723978244270,-500.0,0.00016438,2]
[335205205,1723978244280,-500.0,0.00016438,2]
[335205206,1723978244289,-500.0,0.00016438,2]
[335205207,1723978244299,-500.0,0.00016438,2]
[335205208,1723978244309,-500.0,0.00016438,2]
[335205209,1723978244319,-665.79,0.00016438,2]
[335205210,1723978244328,-500.0,0.00016438,2]
[335205211,1723978244338,-252.00719866,0.00016438,2]
[335205212,1723978244349,-500.0,0.00016438,2]
[335205213,1723978244359,-500.0,0.00016438,2]
[335205214,1723978244369,-500.0,0.00016438,2]
[335205215,1723978244378,-329.41772764,0.00016438,2]
[335205216,1723978244388,-500.0,0.00016438,2]
[335205217,1723978244397,-500.0,0.00016438,2]
[335205218,1723978244407,-500.0,0.00016438,2]
[335205219,1723978244417,-474.35425249,0.00016438,2]
[335205220,1723978244426,-501.6854391,0.00016438,2]
[335205221,1723978244436,-500.0,0.00016438,2]
[335205222,1723978244445,-500.0,0.00016438,2]
[335205223,1723978244455,-500.0,0.00016438,2]
[335205224,1723978244465,-500.0,0.00016438,2]
[335205225,1723978244474,-500.0,0.00016438,2]
[335205226,1723978244483,-500.0,0.00016438,2]
[335205227,1723978244492,-500.0,0.00016438,2]
[335205228,1723978244503,-500.0,0.00016438,2]
[335205229,1723978244512,-500.0,0.00016438,2]
[335205230,1723978244522,-500.0,0.00016438,2]
[335205231,1723978244531,-729.61,0.00016438,2]
[335205232,1723978244541,-500.0,0.00016438,2]
[335205233,1723978244550,-500.0,0.00016438,2]
[335205234,1723978244560,-500.0,0.00016438,2]
[335205235,1723978244570,-500.0,0.00016438,2]
[335205236,1723978244579,-500.0,0.00016438,2]
[335205237,1723978244589,-2005.0,0.00016438,10]
[335205238,1723978244599,-500.0,0.00016438,2]
[335205239,1723978244608,-500.0,0.00016438,2]
[335205240,1723978244618,-500.0,0.00016438,2]
[335205241,1723978244628,-502.8264722,0.00016438,2]
[335205242,1723978244638,-500.0,0.00016438,2]
[335205243,1723978244647,-500.0,0.00016438,2]
[335205244,1723978244658,-502.03791934,0.00016438,2]
[335205245,1723978244667,-519.3786446,0.00016438,2]
[335205246,1723978244677,-1161.88,0.00016438,2]
[335205247,1723978244687,-228.13925843,0.00016438,2]
[335205248,1723978244697,-500.0,0.00016438,2]
[335205249,1723978244707,-514.17707633,0.00016438,2]
[335205250,1723978244717,-756.2,0.00016438,2]
[335205251,1723978244727,-638.91,0.00016438,2]
[335205252,1723978244736,-500.0,0.00016438,2]
[335205253,1723978244846,-200.0,0.00016438,2]
[335205254,1723978244856,-502.85908508,0.00016438,2]
[335205255,1723978244867,-500.0,0.00016438,2]
[335205256,1723978244878,-500.0,0.00016438,2]
[335205257,1723978244887,-500.0,0.00016438,2]
[335205258,1723978244897,-1355.38,0.00016438,2]
[335205259,1723978244907,-1357.84,0.00016438,2]
[335205260,1723978244916,-500.0,0.00016438,2]
[335205261,1723978244925,-515.17274686,0.00016438,2]
[335205262,1723978244935,-500.0,0.00016438,2]
[335205263,1723978244945,-1193.77,0.00016438,2]
[335205264,1723978244954,-500.0,0.00016438,2]
[335205265,1723978244965,-500.0,0.00016438,2]
[335205266,1723978244974,-512.40516125,0.00016438,2]
[335205267,1723978244983,-500.0,0.00016438,2]
[335205268,1723978244993,-500.0,0.00016438,2]
[335205269,1723978245002,-500.0,0.00016438,2]
[335205270,1723978245012,-500.0,0.00016438,2]
[335205271,1723978245022,-500.0,0.00016438,2]
[335205272,1723978245031,-500.0,0.00016438,2]
[335205273,1723978245040,-500.0,0.00016438,2]
[335205274,1723978245050,-500.0,0.00016438,2]
[335205275,1723978245060,-500.0,0.00016438,2]
[335205276,1723978245069,-500.0,0.00016438,2]
[335205277,1723978245078,-500.0,0.00016438,2]
[335205278,1723978245088,-500.0,0.00016438,2]
[335205279,1723978245097,-500.0,0.00016438,2]
[335205280,1723978245106,-500.0,0.00016438,2]
[335205281,1723978245116,-500.0,0.00016438,2]
[335205282,1723978245128,-500.0,0.00016438,2]
[335205283,1723978245138,-500.0,0.00016438,2]
[335205284,1723978245147,-500.0,0.00016438,2]
[335205285,1723978245157,-500.0,0.00016438,2]
[335205286,1723978245167,-500.0,0.00016438,2]
[335205287,1723978245177,-1133.98,0.00016438,2]
[335205288,1723978245187,-936.29,0.00016438,2]
[335205289,1723978245196,-506.77248503,0.00016438,2]
[335205290,1723978245206,-622.34349143,0.00016438,2]
[335205291,1723978245215,-500.0,0.00016438,2]
[335205292,1723978245224,-500.0,0.00016438,2]
[335205293,1723978245234,-501.12137864,0.00016438,2]
[335205294,1723978245243,-500.0,0.00016438,2]
[335205295,1723978245253,-506.40033661,0.00016438,2]
[335205296,1723978245262,-500.0,0.00016438,2]
[335205297,1723978245272,-1319.09,0.00016438,2]
[335205298,1723978245281,-500.0,0.00016438,2]
[335205299,1723978245291,-500.0,0.00016438,2]
[335205300,1723978245300,-748.11,0.00016438,2]
[335205301,1723978245309,-500.0,0.00016438,2]
[335205302,1723978245319,-500.0,0.00016438,2]
[335205303,1723978245329,-500.0,0.00016438,2]
[335205304,1723978245338,-500.0,0.00016438,2]
[335205305,1723978245347,-642.67,0.00016438,2]
[335205306,1723978245357,-510.97364611,0.00016438,2]
[335205307,1723978245366,-500.0,0.00016438,2]
[335205308,1723978245376,-500.0,0.00016438,2]
[335205309,1723978245386,-500.0,0.00016438,2]
[335205310,1723978245396,-1176.95,0.00016438,2]
[335205311,1723978245405,-500.0,0.00016438,2]
[335205312,1723978245415,-500.0,0.00016438,2]
[335205313,1723978245424,-500.0,0.00016438,2]
[335205314,1723978245434,-534.25,0.00016438,2]
[335205315,1723978245443,-500.0,0.00016438,2]
[335205316,1723978245453,-500.0,0.00016438,2]
[335205317,1723978245462,-500.0,0.00016438,2]
[335205318,1723978245472,-500.0,0.00016438,2]
[335205319,1723978245482,-500.0,0.00016438,2]
[335205320,1723978245491,-500.0,0.00016438,2]
[335205321,1723978245500,-511.00267424,0.00016438,2]
[335205322,1723978245510,-500.0,0.00016438,2]
[335205323,1723978245520,-500.0,0.00016438,2]
[335205324,1723978245530,-379.23394776,0.00016438,2]
[335205325,1723978245539,-391.39034035,0.00016438,2]
[335205326,1723978245549,-500.0,0.00016438,2]
[335205327,1723978245558,-1253.21,0.00016438,2]
[335205328,1723978245568,-711.27,0.00016438,2]
[335205329,1723978245577,-500.0,0.00016438,2]
[335205330,1723978245587,-500.0,0.00016438,2]
[335205331,1723978245596,-616.2,0.00016438,2]
[335205332,1723978245606,-500.0,0.00016438,2]
[335205333,1723978245615,-626.45,0.00016438,2]
[335205334,1723978245624,-500.0,0.00016438,2]
[335205335,1723978245634,-500.8022216,0.00016438,2]
[335205336,1723978245644,-582.66,0.00016438,2]
[335205337,1723978245653,-500.0,0.00016438,2]
[335205338,1723978245663,-500.0,0.00016438,2]
[335205339,1723978245672,-500.0,0.00016438,2]
[335205340,1723978245682,-503.19594722,0.00016438,2]
[335205341,1723978245691,-3211.23,0.00016438,2]
[335205342,1723978245702,-500.0,0.00016438,2]
[335205343,1723978245712,-1782.31,0.00016438,2]
[335205344,1723978245721,-151.0,0.00016438,2]
[335205345,1723978245735,-612.68,0.00016438,2]
[335205346,1723978245746,-500.0,0.00016438,2]
[335205347,1723978245757,-1330.07,0.00016438,2]
[335205348,1723978245767,-507.65850958,0.00016438,2]
[335205349,1723978245777,-500.0,0.00016438,2]
[335205350,1723978245788,-541.78,0.00016438,2]
[335205351,1723978245802,-500.0,0.00016438,2]
[335205352,1723978245813,-151.0,0.00016438,2]
[335205353,1723978245824,-500.0,0.00016438,2]
[335205354,1723978245835,-500.0,0.00016438,2]
[335205355,1723978245846,-500.0,0.00016438,2]
[335205356,1723978245857,-861.07,0.00016438,2]
[335205357,1723978245868,-500.0,0.00016438,2]
[335205358,1723978245881,-500.0,0.00016438,2]
[335205359,1723978245893,-500.0,0.00016438,2]
[335205360,1723978245904,-657.9,0.00016438,2]
[335205361,1723978245915,-500.0,0.00016438,2]
[335205362,1723978245926,-643.82,0.00016438,2]
[335205363,1723978245938,-500.0,0.00016438,2]
[335205364,1723978245949,-500.0,0.00016438,2]
[335205365,1723978245960,-500.0,0.00016438,2]
[335205366,1723978245970,-500.0,0.00016438,2]
[335205367,1723978245980,-500.0,0.00016438,2]
[335205368,1723978245990,-611.64,0.00016438,2]
[335205369,1723978246000,-500.0,0.00016438,2]
[335205370,1723978246010,-515.79324204,0.00016438,2]
[335205371,1723978246020,-500.0,0.00016438,2]
[335205373,1723978246030,-6977.86,0.00016438,2]
[335205374,1723978246040,-500.0,0.00016438,2]
[335205376,1723978246050,-500.0,0.00016438,2]
[335205377,1723978246060,-931.16,0.00016438,2]
[335205378,1723978246071,-500.0,0.00016438,2]
[335205379,1723978246080,-500.0,0.00016438,2]
[335205380,1723978246090,-2007.9,0.00016438,2]
[335205381,1723978246102,-500.0,0.00016438,2]
[335205382,1723978246112,-166.30995301,0.00016438,2]
[335205383,1723978246123,-1023.26,0.00016438,2]
[335205384,1723978246133,-500.0,0.00016438,2]
[335205385,1723978246144,-500.0,0.00016438,2]
[335205386,1723978246155,-500.0,0.00016438,2]
[335205387,1723978246165,-500.0,0.00016438,2]
[335205388,1723978246174,-500.0,0.00016438,2]
[335205389,1723978246184,-777.99,0.00016438,2]
[335205390,1723978246194,-500.0,0.00016438,2]
[335205391,1723978246204,-500.0,0.00016438,2]
[335205392,1723978246215,-500.0,0.00016438,2]
[335205393,1723978246226,-500.0,0.00016438,2]
[335205394,1723978246235,-391.50497632,0.00016438,2]
[335205396,1723978246245,-931.18,0.00016438,2]
[335205398,1723978246256,-500.0,0.00016438,2]
[335205400,1723978246266,-500.0,0.00016438,2]
[335205401,1723978246275,-500.0,0.00016438,2]
[335205403,1723978246285,-500.0,0.00016438,2]
[335205405,1723978246295,-500.0,0.00016438,2]
[335205407,1723978246304,-500.0,0.00016438,2]
[335205409,1723978246315,-500.0,0.00016438,2]
[335205411,1723978246324,-500.0,0.00016438,2]
[335205413,1723978246334,-500.0,0.00016438,2]
[335205414,1723978246344,-511.64450692,0.00016438,2]
[335205415,1723978246357,-1081.56,0.00016438,2]
[335205416,1723978246368,-500.0,0.00016438,2]
[335205417,1723978246380,-314.10509722,0.00016438,2]
[335205418,1723978246390,-2055.66,0.00016438,2]
[335205420,1723978246400,-500.0,0.00016438,2]
[335205422,1723978246410,-500.0,0.00016438,2]
[335205424,1723978246419,-516.68,0.00016438,2]
[335205426,1723978246430,-500.0,0.00016438,2]
[335205427,1723978246440,-156.02306669,0.00016438,2]
[335205429,1723978246618,-1029.10693331,0.00016438,2]
[335205430,1723978246628,-697.34,0.00016438,2]
[335205431,1723978246637,-500.0,0.00016438,2]
[335205432,1723978246647,-500.0,0.00016438,2]
[335205433,1723978246657,-510.46232296,0.00016438,2]
[335205434,1723978246668,-500.0,0.00016438,2]
[335205435,1723978246679,-500.0,0.00016438,2]
[335205436,1723978246690,-500.0,0.00016438,2]
[335205437,1723978246701,-1015.84,0.00016438,2]
[335205438,1723978246712,-891.51,0.00016438,2]
[335205439,1723978246722,-500.0,0.00016438,2]
[335205440,1723978246731,-848.05,0.00016438,2]
[335205441,1723978246742,-500.0,0.00016438,2]
[335205442,1723978246754,-709.79,0.00016438,2]
[335205443,1723978246766,-500.0,0.00016438,2]
[335205444,1723978246775,-500.0,0.00016438,2]
[335205445,1723978246785,-957.04,0.00016438,2]
[335205446,1723978246800,-500.0,0.00016438,2]
[335205447,1723978246810,-500.0,0.00016438,2]
[335205448,1723978246820,-684.6,0.00016438,2]
[335205449,1723978246831,-729.94,0.00016438,2]
[335205450,1723978246841,-677.81,0.00016438,2]
[335205451,1723978246851,-780.04,0.00016438,2]
[335205452,1723978246861,-500.0,0.00016438,2]
[335205453,1723978246873,-500.0,0.00016438,2]
[335205454,1723978246883,-500.0,0.00016438,2]
[335205455,1723978246894,-783.85,0.00016438,2]
[335205456,1723978246905,-500.0,0.00016438,2]
[335205457,1723978246917,-929.77,0.00016438,2]
[335205458,1723978246926,-731.73,0.00016438,2]
[335205459,1723978246936,-500.0,0.00016438,2]
[335205460,1723978246946,-984.19,0.00016438,2]
[335205461,1723978246957,-500.0,0.00016438,2]
[335205462,1723978246969,-500.0,0.00016438,2]
[335205463,1723978246979,-758.37,0.00016438,2]
[335205464,1723978246989,-215.265554,0.00016438,2]
[335205465,1723978246999,-918.67,0.00016438,2]
[335205466,1723978247008,-503.18430645,0.00016438,2]
[335205467,1723978247018,-500.0,0.00016438,2]
[335205468,1723978247027,-500.0,0.00016438,2]
[335205469,1723978247036,-500.0,0.00016438,2]
[335205470,1723978247046,-546.60348441,0.00016438,2]
[335205471,1723978247056,-500.0,0.00016438,2]
[335205472,1723978247065,-215.265554,0.00016438,2]
[335205473,1723978247075,-500.0,0.00016438,2]
[335205474,1723978247084,-1070.69,0.00016438,2]
[335205475,1723978247094,-2012.69,0.00016438,2]
[335205476,1723978247103,-506.13,0.00016438,2]
[335205477,1723978247113,-500.0,0.00016438,2]
[335205478,1723978247122,-500.0,0.00016438,2]
[335205479,1723978247132,-865.11,0.00016438,2]
[335205480,1723978247142,-500.0,0.00016438,2]
[335205481,1723978247152,-500.0,0.00016438,2]
[335205482,1723978247161,-814.32,0.00016438,2]
[335205483,1723978247172,-500.0,0.00016438,2]
[335205484,1723978247181,-500.0,0.00016438,2]
[335205485,1723978247191,-272.23026144,0.00016438,2]
[335205486,1723978247200,-759.69,0.00016438,2]
[335205487,1723978247210,-500.0,0.00016438,2]
[335205488,1723978247219,-855.8,0.00016438,2]
[335205489,1723978247229,-500.0,0.00016438,2]
[335205490,1723978247240,-500.0,0.00016438,2]
[335205491,1723978247251,-500.0,0.00016438,2]
[335205492,1723978247260,-500.0,0.00016438,2]
[335205493,1723978247269,-500.0,0.00016438,2]
[335205494,1723978247279,-500.0,0.00016438,2]
[335205495,1723978247288,-500.0,0.00016438,2]
[335205496,1723978247298,-506.37358524,0.00016438,2]
[335205497,1723978247308,-500.0,0.00016438,2]
[335205498,1723978247317,-242.80055857,0.00016438,2]
[335205499,1723978247327,-10537.15,0.00016438,2]
[335205500,1723978247337,-10537.15,0.00016438,2]
[335205501,1723978247347,-10537.15,0.00016438,2]
[335205502,1723978247356,-500.0,0.00016438,2]
[335205503,1723978247365,-10537.15,0.00016438,2]
[335205504,1723978247374,-10537.15,0.00016438,2]
[335205505,1723978247384,-10537.15,0.00016438,2]
[335205506,1723978247394,-10537.15,0.00016438,2]
[335205507,1723978247403,-500.0,0.00016438,2]
[335205508,1723978247413,-10537.15,0.00016438,2]
[335205509,1723978247422,-10537.15,0.00016438,2]
[335205510,1723978247433,-10537.15,0.00016438,2]
[335205511,1723978247442,-10537.15,0.00016438,2]
[335205512,1723978247452,-503.20444403,0.00016438,2]
[335205513,1723978247461,-10537.15,0.00016438,2]
[335205514,1723978247471,-500.0,0.00016438,2]
[335205515,1723978247481,-10537.15,0.00016438,2]
[335205516,1723978247490,-4323.77287175,0.00016438,2]
[335205517,1723978247644,-6213.37712825,0.00016438,2]
[335205518,1723978247654,-10537.15,0.00016438,2]
[335205519,1723978247665,-10537.15,0.00016438,2]
[335205520,1723978247675,-716.73,0.00016438,2]
[335205521,1723978247686,-10537.15,0.00016438,2]
[335205522,1723978247697,-10537.15,0.00016438,2]
[335205523,1723978247706,-10537.15,0.00016438,2]
[335205524,1723978247716,-10537.15,0.00016438,2]
[335205525,1723978247726,-500.0,0.00016438,2]
[335205526,1723978247736,-10537.15,0.00016438,2]
[335205527,1723978247746,-10537.15,0.00016438,2]
[335205528,1723978247756,-10537.15,0.00016438,2]
[335205529,1723978247767,-10537.3266748,0.00016438,2]
[335205530,1723978247777,-500.0,0.00016438,2]
[335205531,1723978247789,-1245.16,0.00016438,2]
[335205532,1723978247803,-500.0,0.00016438,2]
[335205533,1723978247814,-577.4,0.00016438,2]
[335205534,1723978247826,-695.79,0.00016438,2]
[335205535,1723978247836,-500.0,0.00016438,2]
[335205536,1723978247847,-632.06211442,0.00016438,2]
[335205537,1723978247858,-1000.0,0.0001644,2]
[335205538,1723978247867,-200.0,0.00016473,2]
[335205539,1723978247879,-200.0,0.00016473,2]
[335205540,1723978247889,-170.14444841,0.00016473,2]
[335205541,1723978247899,-1000.0,0.000165,2]
[335205542,1723978247909,-532.89220378,0.000165,2]
[335205543,1723978247920,-1000.0,0.00016529,2]
[335205544,1723978247930,-1000.0,0.00016538,2]
[335205545,1723978247940,-4910.76359248,0.0001661,2]
[335205546,1723978247949,-500.0,0.00016712,2]
[335205547,1723978247959,-500.0,0.00016712,2]
[335205548,1723978247969,-500.0,0.00016712,2]
[335205549,1723978247979,-505.17290861,0.00016712,2]
[335205550,1723978247988,-591.27,0.00016712,2]
[335205551,1723978247998,-500.0,0.00016712,2]
[335205552,1723978248007,-500.0,0.00016712,2]
[335205553,1723978248017,-500.0,0.00016712,2]
[335205554,1723978248027,-474.86221474,0.00016712,2]
[335205555,1723978248037,-571.35,0.00016712,2]
[335205556,1723978248047,-500.0,0.00016712,2]
[335205557,1723978248057,-302.60388788,0.00016712,2]
[335205558,1723978248066,-500.0,0.00016712,2]
[335205559,1723978248077,-509.93065754,0.00016712,2]
[335205560,1723978248087,-500.0,0.00016712,2]
[335205561,1723978248096,-500.0,0.00016712,2]
[335205562,1723978248106,-506.43008191,0.00016712,2]
[335205563,1723978248115,-511.5341625,0.00016712,2]
[335205564,1723978248125,-505.61470572,0.00016712,2]
[335205565,1723978248230,-500.0,0.00016712,2]
[335205566,1723978248240,-504.35897481,0.00016712,2]
[335205567,1723978248250,-518.86573632,0.00016712,2]
[335205568,1723978248260,-614.96400603,0.00016712,2]
[335205569,1723978248270,-500.0,0.00016712,2]
[335205570,1723978248280,-568.6745778,0.00016712,2]
[335205571,1723978248289,-500.0,0.00016712,2]
[335205572,1723978248299,-500.0,0.00016712,2]
[335205573,1723978248308,-500.0,0.00016712,2]
[335205574,1723978248317,-500.0,0.00016712,2]
[335205575,1723978248327,-547.52,0.00016712,2]
[335205576,1723978248337,-505.91791522,0.00016712,2]
[335205577,1723978248347,-618.44567563,0.00016712,2]
[335205578,1723978248357,-500.0,0.00016712,2]
[335205579,1723978248366,-500.0,0.00016712,2]
[335205580,1723978248375,-500.0,0.00016712,2]
[335205581,1723978248385,-500.0,0.00016712,2]
[335205582,1723978248395,-500.0,0.00016712,2]
[335205583,1723978248405,-500.0,0.00016712,2]
[335205584,1723978248414,-500.0,0.00016712,2]
[335205585,1723978248423,-500.0,0.00016712,2]
[335205586,1723978248434,-500.0,0.00016712,2]
[335205587,1723978248445,-509.1367831,0.00016712,2]
[335205588,1723978248455,-500.0,0.00016712,2]
[335205589,1723978248465,-500.0,0.00016712,2]
[335205590,1723978248475,-500.0,0.00016712,2]
[335205591,1723978248485,-500.0,0.00016712,2]
[335205592,1723978248507,-500.0,0.00016712,2]
[335205593,1723978248516,-500.0,0.00016712,2]
[335205594,1723978248526,-597.15331556,0.00016712,2]
[335205595,1723978248537,-506.69120468,0.00016712,2]
[335205596,1723978248551,-500.0,0.00016712,2]
[335205597,1723978248562,-500.0,0.00016712,2]
[335205598,1723978248572,-500.0,0.00016712,2]
[335205599,1723978248582,-500.0,0.00016712,2]
[335205600,1723978248591,-500.0,0.00016712,2]
[335205601,1723978248601,-500.0,0.00016712,2]
[335205602,1723978248610,-634.2,0.00016712,2]
[335205603,1723978248620,-504.26190343,0.00016712,2]
[335205604,1723978248630,-500.0,0.00016712,2]
[335205605,1723978248640,-512.66634212,0.00016712,2]
[335205606,1723978248650,-500.0,0.00016712,2]
[335205607,1723978248660,-203.93556017,0.00016712,2]
[335205608,1723978248669,-500.0,0.00016712,2]
[335205609,1723978248678,-500.0,0.00016712,2]
[335205610,1723978248687,-500.0,0.00016712,2]
[335205611,1723978248697,-500.0,0.00016712,2]
[335205612,1723978248708,-500.0,0.00016712,2]
[335205613,1723978248719,-505.06143816,0.00016712,2]
[335205614,1723978248729,-500.0,0.00016712,2]
[335205615,1723978248739,-500.0,0.00016712,2]
[335205616,1723978248750,-501.542352,0.00016712,2]
[335205617,1723978248761,-500.0,0.00016712,2]
[335205618,1723978248770,-500.0,0.00016712,2]
[335205619,1723978248781,-510.4719116,0.00016712,2]
[335205620,1723978248794,-510.04064096,0.00016712,2]
[335205621,1723978248804,-500.0,0.00016712,2]
[335205622,1723978248815,-500.0,0.00016712,2]
[335205623,1723978248825,-500.0,0.00016712,2]
[335205624,1723978248838,-500.0,0.00016712,2]
[335205625,1723978248848,-500.0,0.00016712,2]
[335205626,1723978248858,-500.0,0.00016712,2]
[335205627,1723978248868,-484.09248232,0.00016712,2]
[335205628,1723978248879,-500.0,0.00016712,2]
[335205629,1723978248889,-642.43,0.00016712,2]
[335205630,1723978248899,-500.0,0.00016712,2]
[335205631,1723978248909,-500.0,0.00016712,2]
[335205632,1723978248919,-506.49765776,0.00016712,2]
[335205633,1723978248929,-500.0,0.00016712,2]
[335205634,1723978248939,-500.0,0.00016712,2]
[335205635,1723978248948,-888.39,0.00016712,2]
[335205636,1723978248958,-508.5380433,0.00016712,2]
[335205637,1723978248968,-500.0,0.00016712,2]
[335205638,1723978248978,-500.0,0.00016712,2]
[335205639,1723978248988,-500.0,0.00016712,2]
[335205640,1723978249001,-500.0,0.00016712,2]
[335205641,1723978249010,-500.0,0.00016712,2]
[335205642,1723978249026,-500.0,0.00016712,2]
[335205643,1723978249049,-500.0,0.00016712,2]
[335205644,1723978249059,-500.0,0.00016712,2]
[335205645,1723978249069,-642.95,0.00016712,2]
[335205646,1723978249080,-500.0,0.00016712,2]
[335205647,1723978249090,-999.84,0.00016712,2]
[335205648,1723978249100,-507.9909828,0.00016712,2]
[335205649,1723978249109,-500.0,0.00016712,2]
[335205650,1723978249119,-500.0,0.00016712,2]
[335205651,1723978249128,-500.0,0.00016712,2]
[335205652,1723978249138,-711.27,0.00016712,2]
[335205653,1723978249147,-500.0,0.00016712,2]
[335205654,1723978249156,-513.1321398,0.00016712,2]
[335205655,1723978249166,-469.84670545,0.00016712,2]
[335205656,1723978249177,-500.0,0.00016712,2]